Body Name,Supplier Name,Account Number,Invoice Date,Document File Name,Cost Centre / Project Code,Cost Centre/Project Description,Subjective Account,Subjective description,Invoice Amount (Excluding VAT)
Cambridge City Council,1st Glass Services,10000100,04/04/2019,027292,6207,Repairs Day to Day,60233,Housing Repairs - Work Given To External Contractors,660.96
Cambridge City Council,2 Ton Production,,10/04/2019,028300,1262,Folk Festival,52210,Delivery fees,"6,678.00"
Cambridge City Council,2 Ton Production,,10/04/2019,028297,1262,Folk Festival,52210,Delivery fees,"8,024.00"
Cambridge City Council,2 Ton Productions Ltd,10326600,24/04/2019,029307,1263,Cambridge Live - Central,52200,Booking Fees,"3,910.00"
Cambridge City Council,AA Global Language Services Ltd,10001100,31/03/2019,028284,1203,Corporate Policy,62408,Translation Services,768.84
Cambridge City Council,Abbey Bowls Club,10001200,24/04/2019,028957,1102,Leisure Contract Client Costs,64600,Grants And Contributions,"5,331.42"
Cambridge City Council,ACAS,10001800,18/02/2019,027490,6203,Technical Services,62400,Consultancy Fees,"1,355.00"
Cambridge City Council,Acting Now C I C,10002200,12/04/2019,028337,1057,Community Development Voluntary Support,64600,Grants And Contributions,"2,000.00"
Cambridge City Council,Addex Group,10251600,29/03/2019,027959,1855,Street Cleaning - Direct,60909,Vehicle Hire,750.00
Cambridge City Council,Aecom Ltd,10003200,12/04/2019,029011,300061,New Build - Hawkins Road,70010,CAPEX - Other Professional Fees,860.00
Cambridge City Council,Alboro Developments Ltd,10133300,05/04/2019,028017,1031,Fleet Management - Operational,60400,Rents Payable,"15,124.00"
Cambridge City Council,Alboro Developments Ltd,10133300,31/03/2019,027650,1031,Fleet Management - Operational,60303,Electricity,"1,122.40"
Cambridge City Council,Alexandra & Beehive Bowls Club,10004100,24/04/2019,029046,1102,Leisure Contract Client Costs,64600,Grants And Contributions,"5,331.42"
Cambridge City Council,Allia Ltd,10196200,01/04/2019,027287,1057,Community Development Voluntary Support,64600,Grants And Contributions,"3,500.00"
Cambridge City Council,Alliance Asbestos Services Ltd,10115400,15/04/2019,028500,300007,Asbestos Removal,70003,CAPEX - Building Contractor/Works - Voids & Emergencies,"4,748.00"
Cambridge City Council,Alliance Asbestos Services Ltd,10115400,15/04/2019,028499,300007,Asbestos Removal,70003,CAPEX - Building Contractor/Works - Voids & Emergencies,"3,482.00"
Cambridge City Council,Alliance Electronics Ltd,10198900,01/04/2019,028841,1031,Fleet Management - Operational,60011,Agency Staff,"1,261.00"
Cambridge City Council,Alliance Electronics Ltd,10198900,04/03/2019,027647,1031,Fleet Management - Operational,60011,Agency Staff,"1,183.00"
Cambridge City Council,Alliance Electronics Ltd,10198900,25/03/2019,028842,1031,Fleet Management - Operational,60011,Agency Staff,962.00
Cambridge City Council,Alliance Electronics Ltd,10198900,26/02/2019,027655,1031,Fleet Management - Operational,60011,Agency Staff,676.00
Cambridge City Council,Andrew Firebrace Partnership Ltd,10005400,29/03/2019,027739,1760,Robert Davies Court,60201,Cyclical/Planned Maintenance - Building,587.00
Cambridge City Council,Andy Knott Construction,10342100,18/03/2019,028944,200001,Mandatory Disabled Facilities Grants (Tenants),70015,CAPEX - Grants Paid,"26,390.58"
Cambridge City Council,AON UK Limited,10006800,26/03/2019,027855,8009,Insurance Fund,67302,Insurance Claim,"37,143.70"
Cambridge City Council,AON UK Limited,10006800,26/03/2019,028122,8009,Insurance Fund,67302,Insurance Claim,"7,146.50"
Cambridge City Council,AON UK Limited,10006800,26/03/2019,027862,8009,Insurance Fund,67302,Insurance Claim,"2,993.76"
Cambridge City Council,AON UK Limited,10006800,26/03/2019,027860,8009,Insurance Fund,67302,Insurance Claim,"61,016.48"
Cambridge City Council,AON UK Limited,10006800,08/04/2019,028125,8009,Insurance Fund,67302,Insurance Claim,"4,385.20"
Cambridge City Council,AON UK Limited,10006800,26/03/2019,027854,8009,Insurance Fund,67302,Insurance Claim,"1,069.47"
Cambridge City Council,AON UK Limited,10006800,26/03/2019,027859,8009,Insurance Fund,67302,Insurance Claim,"2,000.00"
Cambridge City Council,AON UK Limited,10006800,26/03/2019,027834,8009,Insurance Fund,67302,Insurance Claim,"2,043.57"
Cambridge City Council,AON UK Limited,10006800,08/04/2019,028127,8009,Insurance Fund,67302,Insurance Claim,"110,127.46"
Cambridge City Council,AON UK Limited,10006800,08/04/2019,028124,8009,Insurance Fund,67302,Insurance Claim,"20,591.69"
Cambridge City Council,AON UK Limited,10006800,26/03/2019,027839,8009,Insurance Fund,67302,Insurance Claim,"2,626.40"
Cambridge City Council,APSE Manchester,10127800,02/04/2019,028492,1857,Head of Streets & Open Spaces,64800,Membership And Subscriptions,"2,412.00"
Cambridge City Council,APT-Skidata Ltd,10115700,10/04/2019,028704,1651,Grand Arcade Car Park,61702,"Maintenance - Equipment, Furniture And Materials","3,132.76"
Cambridge City Council,APT-Skidata Ltd,10115700,16/04/2019,029104,1652,Park Street Car Park,61702,"Maintenance - Equipment, Furniture And Materials","1,386.00"
Cambridge City Council,APT-Skidata Ltd,10115700,16/04/2019,029100,1654,Grafton Centre East Car Park,61702,"Maintenance - Equipment, Furniture And Materials","1,386.00"
Cambridge City Council,APT-Skidata Ltd,10115700,16/04/2019,029099,1655,Queen Anne Terrace Car Park,61702,"Maintenance - Equipment, Furniture And Materials","1,386.00"
Cambridge City Council,APT-Skidata Ltd,10115700,10/04/2019,028670,1651,Grand Arcade Car Park,61702,"Maintenance - Equipment, Furniture And Materials","1,386.00"
Cambridge City Council,APT-Skidata Ltd,10115700,16/04/2019,029102,1653,Grafton Centre West Car Park,61702,"Maintenance - Equipment, Furniture And Materials","1,386.00"
Cambridge City Council,APT-Skidata Ltd,10115700,10/04/2019,028738,1653,Grafton Centre West Car Park,61702,"Maintenance - Equipment, Furniture And Materials",521.78
Cambridge City Council,Artelia Projects UK Ltd,10194200,31/03/2019,027554,300052,New Build - 2015/16 Garage Sites,70010,CAPEX - Other Professional Fees,"1,500.00"
Cambridge City Council,Arts & Minds,10171200,18/04/2019,028835,1057,Community Development Voluntary Support,64600,Grants And Contributions,"2,000.00"
Cambridge City Council,ATG Access Ltd,10009200,29/03/2019,027991,1866,Open Space Asset Maintenance,61702,"Maintenance - Equipment, Furniture And Materials","1,798.42"
Cambridge City Council,ATS Euromaster Ltd,10009301,31/03/2019,027668,1032,Garage- External Work,61703,"Purchase - Equipment, Furniture And Materials","1,117.30"
Cambridge City Council,Ben Wills,10116100,13/04/2019,028381,6012,City Homes Expenditure,60201,Cyclical/Planned Maintenance - Building,512.62
Cambridge City Council,Bestoutcome Ltd,10284000,01/04/2019,027759,1207,Programme Office,64073,ICT Maintenance and Support,"5,500.00"
Cambridge City Council,Bestoutcome Ltd,10284000,01/04/2019,027759,1207,Programme Office,62400,Consultancy Fees,"1,256.00"
Cambridge City Council,Bestoutcome Ltd,10284000,01/04/2019,027759,1207,Programme Office,62400,Consultancy Fees,"8,792.00"
Cambridge City Council,Bevan Brittan LLP,10012600,09/04/2019,028522,300085,New Build Cromwell Road Redevelopment (HRA),70001,CAPEX - Acquisition of Land & Exisiting Building,"6,899.00"
Cambridge City Council,Bidwells LLP  No 2 Account,10161000,31/03/2019,028310,100154,Acquisition of land adjacent to Huntingdon Road Crematorium,70010,CAPEX - Other Professional Fees,849.35
Cambridge City Council,Bidwells LLP  No 2 Account,10161000,18/04/2019,028803,1750,Property Services,62400,Consultancy Fees,"8,000.00"
Cambridge City Council,Bidwells LLP  No 2 Account,10161000,18/04/2019,028803,1453,Finance General Recharges,62400,Consultancy Fees,"2,000.00"
Cambridge City Council,Bidwells LLP  No 2 Account,10161000,18/04/2019,028803,1750,Property Services,62400,Consultancy Fees,"7,245.00"
Cambridge City Council,Bidwells LLP  No 2 Account,10161000,31/03/2019,027832,1750,Property Services,62400,Consultancy Fees,"24,000.00"
Cambridge City Council,Bidwells LLP  No 2 Account,10161000,31/03/2019,027832,1453,Finance General Recharges,62400,Consultancy Fees,"6,000.00"
Cambridge City Council,Biochemica Water Ltd,10218600,31/03/2019,027696,6205,Citywide Schemes,60235,Housing Repairs - Other Premises Related Costs,"1,371.00"
Cambridge City Council,Bodywork Company Performing Arts Cambridge,10291800,17/04/2019,028685,1263,Cambridge Live - Central,52200,Booking Fees,"1,369.50"
Cambridge City Council,Bodywork Company Performing Arts Cambridge,10291800,17/04/2019,028678,1263,Cambridge Live - Central,52200,Booking Fees,"1,818.00"
Cambridge City Council,Bodywork Company Performing Arts Cambridge,10291800,17/04/2019,028682,1263,Cambridge Live - Central,52200,Booking Fees,"2,448.00"
Cambridge City Council,Bodywork Company Performing Arts Cambridge,10291800,17/04/2019,028662,1263,Cambridge Live - Central,52200,Booking Fees,"1,375.50"
Cambridge City Council,Boishakhi Cultural Association,10344900,23/04/2019,029281,1057,Community Development Voluntary Support,64600,Grants And Contributions,760.00
Cambridge City Council,Boldfield Computing Ltd,10306300,01/04/2019,027915,1263,Cambridge Live - Central,64070,Ict Hardware,"2,834.65"
Cambridge City Council,Boldfield Computing Ltd,10306300,01/04/2019,027917,1263,Cambridge Live - Central,64073,ICT Maintenance and Support,"1,363.18"
Cambridge City Council,Bouygues Energies & Services FM UK Ltd,10126400,08/04/2019,028175,100155,Building works at the Guildhall to reduce carbon emissions,70010,CAPEX - Other Professional Fees,"37,082.03"
Cambridge City Council,Bsg Property Services Ltd,10015900,15/03/2019,029426,200001,Mandatory Disabled Facilities Grants (Tenants),70015,CAPEX - Grants Paid,"4,248.00"
Cambridge City Council,BSI Standards Ltd,10016100,01/03/2019,028370,6203,Technical Services,64800,Membership And Subscriptions,816.00
Cambridge City Council,Businessclean (Cambridge) Ltd,10016800,29/03/2019,027675,6102,Temporary Accommodation,60501,Cleaning Services,"1,240.00"
Cambridge City Council,Businessclean (Cambridge) Ltd,10016800,29/03/2019,027701,6208,Voids,60220,Housing Repairs - Work To Void Properties,"2,268.00"
Cambridge City Council,Businessclean (Cambridge) Ltd,10016800,31/03/2019,027870,6102,Temporary Accommodation,60501,Cleaning Services,871.50
Cambridge City Council,Businessclean (Cambridge) Ltd,10016800,31/03/2019,027773,6102,Temporary Accommodation,60501,Cleaning Services,"1,766.68"
Cambridge City Council,Businessclean (Cambridge) Ltd,10016800,31/03/2019,027773,1502,Homelessness Costs,60501,Cleaning Services,568.16
Cambridge City Council,C Silverman Office Furniture Centre,10244200,12/04/2019,028846,1855,Street Cleaning - Direct,61703,"Purchase - Equipment, Furniture And Materials","1,260.00"
Cambridge City Council,Cam Sight,10017400,03/04/2019,028080,1057,Community Development Voluntary Support,64600,Grants And Contributions,"1,000.00"
Cambridge City Council,Cambridge & District Citizen's Advice Bureau,10017500,17/04/2019,028651,1057,Community Development Voluntary Support,64600,Grants And Contributions,"75,000.00"
Cambridge City Council,Cambridge & District Citizen's Advice Bureau,10017500,01/01/2019,026948,1203,Corporate Policy,68300,Unallocated Budget,"17,500.00"
Cambridge City Council,Cambridge African Network,10017700,02/04/2019,028196,1057,Community Development Voluntary Support,64600,Grants And Contributions,"1,040.00"
Cambridge City Council,Cambridge Bid Limited,10017900,31/03/2019,029179,5025,Business Improvement District (BID) Collection Fund,58702,BID Levy - Payment to BID Company,706.37
Cambridge City Council,Cambridge Bid Limited,10017900,11/04/2019,028430,5025,Business Improvement District (BID) Collection Fund,58702,BID Levy - Payment to BID Company,"150,000.00"
Cambridge City Council,Cambridge Carbon Footprint Ltd,10018000,15/04/2019,028429,1209,Sustainability Grants,64600,Grants And Contributions,"9,000.00"
Cambridge City Council,Cambridge City Council,10153901,08/05/2019,028485,1865,Lettings & Events on Open Spaces,63900,Miscellaneous Expenses,"1,070.00"
Cambridge City Council,Cambridge City Council,10153901,01/05/2019,028483,8021,IT Contract Costs,64073,ICT Maintenance and Support,"3,739.31"
Cambridge City Council,Cambridge Community Arts,10018200,23/04/2019,029052,1057,Community Development Voluntary Support,64600,Grants And Contributions,"2,136.00"
Cambridge City Council,Cambridge Cycling Campaign,10018600,02/04/2019,027713,1882,Walking & Cycling Strategy,62900,Events,"2,000.00"
Cambridge City Council,Cambridge Cycling Campaign,10018600,02/04/2019,027710,1882,Walking & Cycling Strategy,62900,Events,"4,000.00"
Cambridge City Council,Cambridge Cyrenians Ltd,10018700,09/04/2019,028168,1411,Miscellaneous Licensing - Housing Portfolio,53900,Licence And Permit Income,950.00
Cambridge City Council,Cambridge Disabled Kids Swimming Club,10177100,16/04/2019,028516,1057,Community Development Voluntary Support,64600,Grants And Contributions,"3,200.00"
Cambridge City Council,Cambridge Early Music,10308200,17/04/2019,028632,1263,Cambridge Live - Central,52200,Booking Fees,974.80
Cambridge City Council,Cambridge Ethnic Community Forum,10019300,01/04/2019,027205,1057,Community Development Voluntary Support,64600,Grants And Contributions,"11,000.00"
Cambridge City Council,Cambridge Felt Roofing Ltd,10117000,02/04/2019,027408,6207,Repairs Day to Day,60233,Housing Repairs - Work Given To External Contractors,"1,300.00"
Cambridge City Council,Cambridge Hard of Hearing Club,10336200,02/04/2019,027688,1057,Community Development Voluntary Support,64600,Grants And Contributions,700.00
Cambridge City Council,Cambridge Housing Society Ltd,10019600,10/04/2019,028665,1509,Grants to Housing Agencies,64600,Grants And Contributions,"15,000.00"
Cambridge City Council,Cambridge Housing Society Ltd,10019600,24/04/2019,029297,1057,Community Development Voluntary Support,64600,Grants And Contributions,"8,500.00"
Cambridge City Council,Cambridge Investment Partnership LLP,10145700,20/03/2019,027279,300090,Meadows and Buchan Street,70002,CAPEX - Building Contractor/Works,"22,471.24"
Cambridge City Council,Cambridge Investment Partnership LLP,10145700,20/03/2019,027985,300064,New Build - Akeman Street,70002,CAPEX - Building Contractor/Works,"10,674.01"
Cambridge City Council,Cambridge Investment Partnership LLP,10145700,20/03/2019,027987,300079,New Build - Markham Close,70002,CAPEX - Building Contractor/Works,"10,033.99"
Cambridge City Council,Cambridge Investment Partnership LLP,10145700,20/03/2019,027980,300074,New Build - Colville Road Garages,70002,CAPEX - Building Contractor/Works,"10,834.17"
Cambridge City Council,Cambridge Investment Partnership LLP,10145700,05/04/2019,028565,300058,New Build - Anstey Way,70002,CAPEX - Building Contractor/Works,"620,857.16"
Cambridge City Council,Cambridge Investment Partnership LLP,10145700,20/03/2019,027984,300073,New Build - Wulfstan Way,70002,CAPEX - Building Contractor/Works,"7,889.42"
Cambridge City Council,Cambridge Investment Partnership LLP,10145700,20/03/2019,027986,300069,New Build - Ventress Close,70002,CAPEX - Building Contractor/Works,"29,358.35"
Cambridge City Council,Cambridge Investment Partnership LLP,10145700,20/03/2019,027979,300072,New Build In-Fill - Queensmeadow,70002,CAPEX - Building Contractor/Works,"17,968.65"
Cambridge City Council,Cambridge Investment Partnership LLP,10145700,20/03/2019,027990,300078,New Build - Gunhild Way,70002,CAPEX - Building Contractor/Works,"5,751.39"
Cambridge City Council,Cambridge Literary Festival,10019700,24/04/2019,028979,1263,Cambridge Live - Central,52200,Booking Fees,"6,474.60"
Cambridge City Council,Cambridge Literary Festival,10019700,10/04/2019,028417,1262,Folk Festival,52210,Delivery fees,"7,860.46"
Cambridge City Council,Cambridge Literary Festival,10019700,17/04/2019,028786,1263,Cambridge Live - Central,52200,Booking Fees,"32,133.33"
Cambridge City Council,Cambridge Online,10154400,24/04/2019,029185,1203,Corporate Policy,68300,Unallocated Budget,"5,136.00"
Cambridge City Council,Cambridge Re-Use,10021200,17/04/2019,028676,1057,Community Development Voluntary Support,64600,Grants And Contributions,"7,850.00"
Cambridge City Council,Cambridge Sports Hall Trust Ltd T/A Kelsey Kerridge,10021400,02/04/2019,027667,1057,Community Development Voluntary Support,64600,Grants And Contributions,"2,914.00"
Cambridge City Council,Cambridge Sports Hall Trust Ltd T/A Kelsey Kerridge,10021400,24/04/2019,028978,1057,Community Development Voluntary Support,64600,Grants And Contributions,"2,914.00"
Cambridge City Council,Cambridge Summer Music Festival,10307600,17/04/2019,028663,1263,Cambridge Live - Central,52200,Booking Fees,"2,428.30"
Cambridge City Council,Cambridge Sustainable Food,10162900,16/04/2019,028517,1057,Community Development Voluntary Support,64600,Grants And Contributions,"9,500.00"
Cambridge City Council,Cambridge Szeged Society,10021500,03/04/2019,027779,1350,Civic Affairs and Twinning,62900,Events,"1,300.00"
Cambridge City Council,Cambridge Womens Aid,10022300,01/04/2019,027339,1057,Community Development Voluntary Support,64600,Grants And Contributions,"2,500.00"
Cambridge City Council,Cambridge Womens Resource Centre,10022400,14/04/2019,028797,1057,Community Development Voluntary Support,64600,Grants And Contributions,"9,500.00"
Cambridge City Council,Cambridgeshire & Peterborough Fire Authority,10022500,09/04/2019,028147,1205,Quality/Health & Safety Management - Indirect,62400,Consultancy Fees,"5,100.00"
Cambridge City Council,Cambridgeshire Constabulary,10022700,10/04/2019,028326,1516,CLG Supplementary Homeslessness Grants,64600,Grants And Contributions,"2,334.50"
Cambridge City Council,Cambridgeshire County Council,10022802,09/04/2019,028625,6008,Housing Transformation,64300,Conference Expenses,556.70
Cambridge City Council,Cambridgeshire County Council,10022802,01/04/2019,027585,1454,Cambridge Northern Fringe East (CNFE),62400,Consultancy Fees,"15,306.60"
Cambridge City Council,Cambridgeshire County Council,10022802,28/02/2019,028588,6104,Independent Living Services,63900,Miscellaneous Expenses,"78,084.00"
Cambridge City Council,Cambridgeshire Vietnamese Refugee Community,10023000,05/04/2019,028102,1057,Community Development Voluntary Support,64600,Grants And Contributions,650.00
Cambridge City Council,Carter Jonas LLP,10141403,27/03/2019,027586,1750,Property Services,62400,Consultancy Fees,"3,000.00"
Cambridge City Council,Carter Jonas LLP,10141403,25/04/2019,029288,6125,"Scholars Court, Homerton Gardens",60401,Service Charges,"9,091.92"
Cambridge City Council,CCPM Ltd,10283000,13/04/2019,028615,1206,Business Transformation Departmental Management,60011,Agency Staff,"8,250.00"
Cambridge City Council,Centre 33,10025400,03/04/2019,027707,1057,Community Development Voluntary Support,64600,Grants And Contributions,"9,125.00"
Cambridge City Council,CFH Docmail Ltd,10025900,31/03/2019,027956,5064,Elections-County Council,62001,Printing,540.65
Cambridge City Council,CFH Docmail Ltd,10025900,31/03/2019,027957,5064,Elections-County Council,62001,Printing,"3,662.45"
Cambridge City Council,Changing Directions,10176800,16/04/2019,028518,1057,Community Development Voluntary Support,64600,Grants And Contributions,500.00
Cambridge City Council,Chesterton Bowls Club Ltd,10027600,24/04/2019,029047,1102,Leisure Contract Client Costs,64600,Grants And Contributions,"5,331.42"
Cambridge City Council,Chesterton Sports Centre,10141200,28/03/2019,026999,1104,Sport - Ex Ref,62404,Instructors/Tutors,"2,310.00"
Cambridge City Council,Childcare Vouchers Limited,10028300,15/04/2019,028354,5000,Salary Sacrifice Schemes Holding Account,60106,Childcare Admin Vouchers,"9,450.50"
Cambridge City Council,Chubb Fire & Security Limited,10029100,25/03/2019,026857,9900,General Fund Balance Sheet,11721,Payments In Advance - Other Entities And Individuals,"5,320.50"
Cambridge City Council,Churchill Contract Services Ltd,10029300,28/02/2019,026901,5024,E_invoicing Suspense Accounts,69100,Expenditure In Holding Account Awaiting Allocation,"128,066.59"
Cambridge City Council,Churchill Contract Services Ltd,10029300,31/03/2019,028587,5024,E_invoicing Suspense Accounts,69100,Expenditure In Holding Account Awaiting Allocation,"130,494.23"
Cambridge City Council,City Electrical Factors Ltd,10029900,01/04/2019,028250,9900,General Fund Balance Sheet,11600,Consumable Stores,591.85
Cambridge City Council,City of Cambridge Bowls Club,10030000,24/04/2019,029048,1102,Leisure Contract Client Costs,64600,Grants And Contributions,"5,331.42"
Cambridge City Council,Clare Hopkins,10169100,15/04/2019,028566,6203,Technical Services,62400,Consultancy Fees,"6,350.50"
Cambridge City Council,Cocksedge Building Contractors Limited,10117400,17/04/2019,029279,300035,Ditchburn Place,70002,CAPEX - Building Contractor/Works,"193,111.73"
Cambridge City Council,Coleridge Bowling Club,10031600,24/04/2019,029049,1102,Leisure Contract Client Costs,64600,Grants And Contributions,"5,331.42"
Cambridge City Council,Colin Stevens,10134400,10/04/2019,028698,1251,Culture and Community,62900,Events,"1,142.00"
Cambridge City Council,College of Animal Welfare,10134500,02/04/2019,028279,1856,Streets & Open Spaces (Operations) - Indirect Costs,60115,Staff Development And Training,885.00
Cambridge City Council,Come Clean Ltd T/A CCL Supplies,10031800,11/04/2019,028601,9900,General Fund Balance Sheet,11600,Consumable Stores,828.80
Cambridge City Council,Comensura Ltd,10031900,03/04/2019,027962,5024,E_invoicing Suspense Accounts,69100,Expenditure In Holding Account Awaiting Allocation,"60,404.06"
Cambridge City Council,Comensura Ltd,10031900,24/04/2019,029287,5024,E_invoicing Suspense Accounts,69100,Expenditure In Holding Account Awaiting Allocation,"41,054.37"
Cambridge City Council,Comensura Ltd,10031900,10/04/2019,028579,5024,E_invoicing Suspense Accounts,69100,Expenditure In Holding Account Awaiting Allocation,"55,325.33"
Cambridge City Council,Comensura Ltd,10031900,17/04/2019,028581,5024,E_invoicing Suspense Accounts,69100,Expenditure In Holding Account Awaiting Allocation,"41,298.67"
Cambridge City Council,Compton & Casburn Ltd,10117600,02/04/2019,027617,6207,Repairs Day to Day,60233,Housing Repairs - Work Given To External Contractors,"1,010.43"
Cambridge City Council,Construction Gateway Ltd,10212900,01/04/2019,027394,6008,Housing Transformation,60115,Staff Development And Training,"7,000.00"
Cambridge City Council,Construction Study Centre Ltd,10261600,23/10/2018,027831,1207,Programme Office,60115,Staff Development And Training,"3,400.00"
Cambridge City Council,Cooleraid Ltd,10033001,15/04/2019,028425,8018,Admin Building Allocation,64200,Subsistence,919.36
Cambridge City Council,COPE,10033300,02/04/2019,027653,1057,Community Development Voluntary Support,64600,Grants And Contributions,"2,500.00"
Cambridge City Council,Core Learning Services Ltd,10156400,18/04/2019,028869,8000,Human Resources - Business Support,64300,Conference Expenses,"6,990.00"
Cambridge City Council,Countryside Properties (UK) Ltd,10033800,03/04/2019,027750,100020,Development Of land at Clay Farm,70002,CAPEX - Building Contractor/Works,"1,381.68"
Cambridge City Council,Countryside Properties (UK) Ltd,10033800,03/04/2019,027750,100020,Development Of land at Clay Farm,70010,CAPEX - Other Professional Fees,"2,132.04"
Cambridge City Council,Countryside Properties (UK) Ltd,10033800,03/04/2019,027750,100020,Development Of land at Clay Farm,70013,CAPEX - Landscaping,945.51
Cambridge City Council,Crawford Associates,10034000,03/04/2019,027996,6119,Brandon Court,61702,"Maintenance - Equipment, Furniture And Materials",625.00
Cambridge City Council,Cromwell Fire Ltd,10034200,21/03/2019,027269,300035,Ditchburn Place,70002,CAPEX - Building Contractor/Works,"1,460.00"
Cambridge City Council,D Carman BSSR Ltd,10118100,08/04/2019,028000,6207,Repairs Day to Day,60233,Housing Repairs - Work Given To External Contractors,"5,763.00"
Cambridge City Council,D Carman BSSR Ltd,10118100,08/04/2019,028002,6207,Repairs Day to Day,60233,Housing Repairs - Work Given To External Contractors,820.00
Cambridge City Council,D Carman BSSR Ltd,10118100,15/03/2019,028611,1866,Open Space Asset Maintenance,63900,Miscellaneous Expenses,577.00
Cambridge City Council,D Carman BSSR Ltd,10118100,11/04/2019,028276,6207,Repairs Day to Day,60233,Housing Repairs - Work Given To External Contractors,"3,435.00"
Cambridge City Council,D Carman BSSR Ltd,10118100,08/04/2019,028003,1250,Cultural Facilities Administration,60201,Cyclical/Planned Maintenance - Building,"8,130.00"
Cambridge City Council,D Carman BSSR Ltd,10118100,11/04/2019,028280,6207,Repairs Day to Day,60233,Housing Repairs - Work Given To External Contractors,752.63
Cambridge City Council,D Carman BSSR Ltd,10118100,01/04/2019,027499,6207,Repairs Day to Day,60233,Housing Repairs - Work Given To External Contractors,"2,991.50"
Cambridge City Council,D Carman BSSR Ltd,10118100,31/03/2019,027643,1767,Orwell Furlong,60201,Cyclical/Planned Maintenance - Building,500.00
Cambridge City Council,D Carman BSSR Ltd,10118100,23/04/2019,028969,6207,Repairs Day to Day,60233,Housing Repairs - Work Given To External Contractors,"2,775.00"
Cambridge City Council,D Carman BSSR Ltd,10118100,11/04/2019,028277,6207,Repairs Day to Day,60233,Housing Repairs - Work Given To External Contractors,"3,675.00"
Cambridge City Council,D Carman BSSR Ltd,10118100,23/04/2019,028975,6207,Repairs Day to Day,60233,Housing Repairs - Work Given To External Contractors,"1,962.40"
Cambridge City Council,D Carman BSSR Ltd,10118100,08/04/2019,028004,1855,Street Cleaning - Direct,60909,Vehicle Hire,"1,264.00"
Cambridge City Council,D Carman BSSR Ltd,10118100,23/04/2019,028989,6207,Repairs Day to Day,60233,Housing Repairs - Work Given To External Contractors,526.00
Cambridge City Council,D Carman BSSR Ltd,10118100,23/04/2019,028981,6207,Repairs Day to Day,60233,Housing Repairs - Work Given To External Contractors,"2,952.50"
Cambridge City Council,David Powell t/a D J Kitchens,10137900,07/04/2019,028116,6207,Repairs Day to Day,60233,Housing Repairs - Work Given To External Contractors,"1,350.00"
Cambridge City Council,David Powell t/a D J Kitchens,10137900,22/04/2019,028865,6207,Repairs Day to Day,60233,Housing Repairs - Work Given To External Contractors,"1,530.00"
Cambridge City Council,David Powell t/a D J Kitchens,10137900,16/04/2019,028634,6207,Repairs Day to Day,60233,Housing Repairs - Work Given To External Contractors,"1,220.00"
Cambridge City Council,David Powell t/a D J Kitchens,10137900,04/01/2019,027502,6207,Repairs Day to Day,60233,Housing Repairs - Work Given To External Contractors,600.00
Cambridge City Council,Dawling Ltd T/A J & J Drake,10118000,24/04/2019,029244,100001,Environmental Improvements Programme - North Area,70002,CAPEX - Building Contractor/Works,600.29
Cambridge City Council,Dennis Eagle Ltd,10036900,15/04/2019,028592,1031,Fleet Management - Operational,61703,"Purchase - Equipment, Furniture And Materials",562.62
Cambridge City Council,Dennis Eagle Ltd,10036900,29/03/2019,028592,1032,Garage- External Work,61703,"Purchase - Equipment, Furniture And Materials","1,667.73"
Cambridge City Council,Dennis Eagle Ltd,10036900,09/04/2019,028592,1031,Fleet Management - Operational,61703,"Purchase - Equipment, Furniture And Materials",986.97
Cambridge City Council,District Councils Network,10038000,07/04/2019,028059,1200,Corporate Management,64800,Membership And Subscriptions,937.00
Cambridge City Council,Dr Karen Skinner,10187700,31/03/2019,027496,1504,Housing Advice Service,62400,Consultancy Fees,"1,172.50"
Cambridge City Council,DSB Engineering Supplies,10039000,28/03/2019,027302,1031,Fleet Management - Operational,61500,Consumables,617.14
Cambridge City Council,DSB Engineering Supplies,10039000,28/03/2019,027289,1031,Fleet Management - Operational,61703,"Purchase - Equipment, Furniture And Materials",595.00
Cambridge City Council,E P S Properties,10043800,01/04/2019,026863,1754,Barnwell House Offices,62004,General Office Expenses,502.18
Cambridge City Council,E.On Energy/Powergen,10039700,29/03/2019,027941,6208,Voids,60236,Housing Repairs - Void Utility Costs,883.12
Cambridge City Council,Eastfield Guest House Ltd,10262600,11/03/2019,027025,1502,Homelessness Costs,64401,B&B Accommodation,798.00
Cambridge City Council,Eastfield Guest House Ltd,10262600,15/04/2019,029208,1502,Homelessness Costs,64401,B&B Accommodation,"1,263.78"
Cambridge City Council,Eastfield Guest House Ltd,10262600,25/03/2019,028454,1502,Homelessness Costs,64401,B&B Accommodation,"1,108.80"
Cambridge City Council,Eastfield Guest House Ltd,10262600,01/04/2019,028457,1502,Homelessness Costs,64401,B&B Accommodation,957.60
Cambridge City Council,Eastfield Guest House Ltd,10262600,19/03/2019,027018,1502,Homelessness Costs,64401,B&B Accommodation,798.00
Cambridge City Council,EDF Energy,10040500,11/04/2019,028550,6102,Temporary Accommodation,60303,Electricity,"1,372.48"
Cambridge City Council,Elior UK PLC,10040900,31/03/2019,027602,6123,Ditchburn Place,61902,Catering Services,"12,701.96"
Cambridge City Council,Emap Ltd,10041200,05/04/2019,028084,1200,Corporate Management,64800,Membership And Subscriptions,"1,337.00"
Cambridge City Council,EMS Lifts Ltd,10041800,05/04/2019,028119,6205,Citywide Schemes,60227,Housing Repairs - Lift Maintenance (Disabled),765.25
Cambridge City Council,EMS Lifts Ltd,10041800,31/03/2019,027784,6205,Citywide Schemes,60227,Housing Repairs - Lift Maintenance (Disabled),762.27
Cambridge City Council,EMS Lifts Ltd,10041800,31/03/2019,027786,6205,Citywide Schemes,60227,Housing Repairs - Lift Maintenance (Disabled),"1,304.19"
Cambridge City Council,Encompass Network,10163100,01/04/2019,027297,1057,Community Development Voluntary Support,64600,Grants And Contributions,"3,541.67"
Cambridge City Council,Encompass Network,10163100,24/04/2019,029214,1057,Community Development Voluntary Support,64600,Grants And Contributions,"4,250.00"
Cambridge City Council,Engineering & Design Plastics Ltd,10042100,11/03/2019,028991,1866,Open Space Asset Maintenance,61702,"Maintenance - Equipment, Furniture And Materials",686.00
Cambridge City Council,Engineering Safety & Testing Ltd,10191700,11/04/2019,028453,8015,Guildhall,60201,Cyclical/Planned Maintenance - Building,540.00
Cambridge City Council,Ernest Doe & Sons Ltd,10043400,23/04/2019,029229,1031,Fleet Management - Operational,61703,"Purchase - Equipment, Furniture And Materials",505.75
Cambridge City Council,Ernest Doe & Sons Ltd,10043400,12/04/2019,028503,1866,Open Space Asset Maintenance,61702,"Maintenance - Equipment, Furniture And Materials","2,800.00"
Cambridge City Council,Ernest Doe & Sons Ltd,10043400,26/04/2019,029377,1866,Open Space Asset Maintenance,61702,"Maintenance - Equipment, Furniture And Materials","2,130.00"
Cambridge City Council,ESPO,10043700,10/04/2019,028603,1071,Clay Farm Community Centre,60305,Gas,"1,262.61"
Cambridge City Council,Euclid Limited,10044300,31/03/2019,027880,1712,Taxicard Service,62001,Printing,"1,090.22"
Cambridge City Council,Euro Municipal Ltd,10342900,24/04/2019,029229,1032,Garage- External Work,61703,"Purchase - Equipment, Furniture And Materials","1,000.00"
Cambridge City Council,Euro Municipal Ltd,10342900,06/02/2019,028916,1031,Fleet Management - Operational,61703,"Purchase - Equipment, Furniture And Materials","1,000.00"
Cambridge City Council,Faithfull Floor Coverings,10266500,23/04/2019,029218,9900,General Fund Balance Sheet,11600,Consumable Stores,"2,211.30"
Cambridge City Council,Fenners Chambers,10045600,23/04/2019,029338,1419,Environmental Health Operational Support,63200,Legal Fees,"2,000.00"
Cambridge City Council,Fishtek Ltd,10146500,29/03/2019,027319,1872,River Frontage Management,62400,Consultancy Fees,"6,925.00"
Cambridge City Council,Fleet Factors Ltd,10279300,04/04/2019,028976,1031,Fleet Management - Operational,61703,"Purchase - Equipment, Furniture And Materials",638.00
Cambridge City Council,FMS Interior Services Ltd,10154600,08/04/2019,028070,6007,Departmental Overheads-Client,61703,"Purchase - Equipment, Furniture And Materials","2,288.61"
Cambridge City Council,Forever Active Forum Ltd,10046500,01/04/2019,028115,1057,Community Development Voluntary Support,64600,Grants And Contributions,"1,000.00"
Cambridge City Council,Foster Property Maintenance Ltd,10046700,05/04/2019,028602,5024,E_invoicing Suspense Accounts,69100,Expenditure In Holding Account Awaiting Allocation,"399,122.92"
Cambridge City Council,Foster Property Maintenance Ltd,10046700,18/04/2019,029265,5024,E_invoicing Suspense Accounts,69100,Expenditure In Holding Account Awaiting Allocation,"88,275.53"
Cambridge City Council,Freeths LLP,10128500,25/03/2019,027758,1455,Park Street Car Park Development,63200,Legal Fees,"1,853.00"
Cambridge City Council,Fse Consult Ltd T/A Fire Safety Express,,22/03/2019,028513,6205,Citywide Schemes,60205,Fire Assessment And Safety,"1,595.00"
Cambridge City Council,Fse Consult Ltd T/A Fire Safety Express,,09/04/2019,028415,6205,Citywide Schemes,60205,Fire Assessment And Safety,"2,400.00"
Cambridge City Council,Gaskin Brothers Ltd,10118700,28/03/2019,027194,100088,Cherry Hinton Grounds improvements Phase 2 (S106),70002,CAPEX - Building Contractor/Works,"6,170.00"
Cambridge City Council,Gaskin Brothers Ltd,10118700,28/03/2019,027195,1866,Open Space Asset Maintenance,60503,Grounds Maintenance,"2,500.00"
Cambridge City Council,Gaskin Brothers Ltd,10118700,28/03/2019,027206,1866,Open Space Asset Maintenance,61702,"Maintenance - Equipment, Furniture And Materials","5,000.00"
Cambridge City Council,Gaskin Brothers Ltd,10118700,13/03/2019,027771,1866,Open Space Asset Maintenance,61702,"Maintenance - Equipment, Furniture And Materials","3,600.00"
Cambridge City Council,Gerald Eve LLP,10151601,03/04/2019,027763,1758,Other Commercial Properties,62400,Consultancy Fees,"5,500.00"
Cambridge City Council,Gibbs & Dandy,10049500,04/04/2019,028601,9900,General Fund Balance Sheet,11600,Consumable Stores,"1,049.10"
Cambridge City Council,Glo-Bell London Ltd,10119000,12/04/2019,028448,8025,Cowley Road Compound,60201,Cyclical/Planned Maintenance - Building,640.00
Cambridge City Council,Glo-Bell London Ltd,10119000,12/04/2019,028446,8017,Mandela House,60201,Cyclical/Planned Maintenance - Building,975.00
Cambridge City Council,Glo-Bell London Ltd,10119000,12/04/2019,028452,8025,Cowley Road Compound,60201,Cyclical/Planned Maintenance - Building,640.00
Cambridge City Council,Go Plant Ltd,10279700,08/03/2019,027642,1855,Street Cleaning - Direct,60909,Vehicle Hire,725.00
Cambridge City Council,Go Plant Ltd,10279700,05/04/2019,028943,1855,Street Cleaning - Direct,60909,Vehicle Hire,725.00
Cambridge City Council,Go Plant Ltd,10279700,22/03/2019,027725,1855,Street Cleaning - Direct,60909,Vehicle Hire,725.00
Cambridge City Council,Go Plant Ltd,10279700,15/02/2019,029258,1855,Street Cleaning - Direct,60909,Vehicle Hire,725.00
Cambridge City Council,Green Energy Switch Ltd,10051400,29/03/2019,028060,6209,Energy Rating,62400,Consultancy Fees,850.00
Cambridge City Council,Greene King,,08/04/2019,028197,1263,Cambridge Live - Central,61905,Purchases - Bar,"1,151.85"
Cambridge City Council,Greenwich Leisure Limited (GLL),10051900,09/04/2019,028687,1101,Leisure Contract Management Fees,62900,Events,"2,153.30"
Cambridge City Council,Greenwich Leisure Limited (GLL),10051900,09/04/2019,028597,1101,Leisure Contract Management Fees,62900,Events,"1,298.00"
Cambridge City Council,Greenwich Leisure Limited (GLL),10051900,09/04/2019,028600,1101,Leisure Contract Management Fees,62900,Events,"1,232.00"
Cambridge City Council,Greenwich Leisure Limited (GLL),10051900,09/04/2019,028624,1101,Leisure Contract Management Fees,62900,Events,"1,680.00"
Cambridge City Council,Greenwich Leisure Limited (GLL),10051900,29/03/2019,028750,1104,Sport - Ex Ref,62400,Consultancy Fees,960.00
Cambridge City Council,Hays Specialist Recruitment Limited,10251500,15/04/2019,028471,8006,Accountancy and Support Services,60011,Agency Staff,"3,125.00"
Cambridge City Council,Hays Specialist Recruitment Limited,10251500,08/04/2019,028062,8006,Accountancy and Support Services,60011,Agency Staff,"3,125.00"
Cambridge City Council,Hays Specialist Recruitment Limited,10251500,04/04/2019,028098,8006,Accountancy and Support Services,60011,Agency Staff,"3,125.00"
Cambridge City Council,Hays Specialist Recruitment Limited,10251500,24/04/2019,029107,8006,Accountancy and Support Services,60011,Agency Staff,"2,500.00"
Cambridge City Council,Heales Health Services Ltd,10054100,31/03/2019,028319,8001,Human Resources Operations (Staff-General),60111,Occupational Health,"1,388.80"
Cambridge City Council,Highfield Awarding Body for Compliance Ltd,10132500,04/04/2019,028082,1419,Environmental Health Operational Support,62003,"Books, Publications And Resources",700.00
Cambridge City Council,Histon Road Area Residents Association,10338200,02/04/2019,028208,1057,Community Development Voluntary Support,64600,Grants And Contributions,"2,750.00"
Cambridge City Council,HM Revenue & Customs,10144203,09/04/2019,027992,9900,General Fund Balance Sheet,21003,Construction Industry Tax (Cis),"5,755.00"
Cambridge City Council,HM Revenue & Customs,10144203,23/04/2019,028924,9900,General Fund Balance Sheet,10013,CCC General Account Bank Account,"631,591.64"
Cambridge City Council,Home-Start Cambridgeshire,10055700,18/04/2019,028891,1057,Community Development Voluntary Support,64600,Grants And Contributions,"5,000.00"
Cambridge City Council,Hometrack Data Systems Limited,10055800,31/03/2019,029294,1512,Sub-Regional Housing Strategy Co-ordinator,64800,Membership And Subscriptions,"14,500.00"
Cambridge City Council,HQN Ltd,10056500,31/03/2019,029003,6012,City Homes Expenditure,60115,Staff Development And Training,"1,089.64"
Cambridge City Council,Huntingdonshire District Council,10056900,25/03/2019,026733,1419,Environmental Health Operational Support,64077,Telephone And Mobile Phone Costs,740.00
Cambridge City Council,Huntingdonshire District Council,10056900,31/03/2019,028077,8021,IT Contract Costs,68618,Recharged Costs - Corporate Business Support,"33,877.54"
Cambridge City Council,Huntingdonshire District Council,10056900,03/04/2019,027760,1454,Cambridge Northern Fringe East (CNFE),62400,Consultancy Fees,"30,461.41"
Cambridge City Council,Huntingdonshire District Council,10056900,04/04/2019,027968,5024,E_invoicing Suspense Accounts,69100,Expenditure In Holding Account Awaiting Allocation,"1,542.33"
Cambridge City Council,Huntingdonshire District Council,10056900,31/03/2019,028086,1519,Shared Home Improvement Agency,64073,ICT Maintenance and Support,"11,577.77"
Cambridge City Council,Huntingdonshire District Council,10056900,31/03/2019,028296,100146,Mobile working (OAS),70022,CAPEX - ICT Hardware,"23,579.00"
Cambridge City Council,Huntingdonshire District Council,10056900,31/03/2019,028072,1419,Environmental Health Operational Support,64073,ICT Maintenance and Support,"3,083.85"
Cambridge City Council,Huntingdonshire District Council,10056900,26/03/2019,026723,1504,Housing Advice Service,64070,Ict Hardware,883.86
Cambridge City Council,Huntingdonshire District Council,10056900,31/03/2019,028294,6117,Talbot House,64073,ICT Maintenance and Support,593.80
Cambridge City Council,Huntingdonshire District Council,10056900,03/04/2019,027737,300030,Orchard Upgrade,70023,CAPEX - ICT Software,"129,620.00"
Cambridge City Council,Huntingdonshire District Council,10056900,31/03/2019,028151,8021,IT Contract Costs,64073,ICT Maintenance and Support,"7,099.68"
Cambridge City Council,Huntingdonshire District Council,10056900,31/03/2019,028304,1661,Parking Administration,64073,ICT Maintenance and Support,"1,057.07"
Cambridge City Council,Huntingdonshire District Council,10056900,25/03/2019,027640,300030,Orchard Upgrade,70023,CAPEX - ICT Software,"184,643.00"
Cambridge City Council,Icon Sign and Design Ltd,10140400,08/04/2019,028450,1661,Parking Administration,60300,Signs Erecting & Removal,"2,440.00"
Cambridge City Council,Illuminate,10058000,03/04/2019,027702,1057,Community Development Voluntary Support,64600,Grants And Contributions,"1,000.00"
Cambridge City Council,Ingleton Wood Martindales Ltd,10224500,26/03/2019,027767,1073,Community Development - Admin,62400,Consultancy Fees,"2,000.00"
Cambridge City Council,International Workplace Ltd,10206400,24/04/2019,029306,1205,Quality/Health & Safety Management - Indirect,62400,Consultancy Fees,666.00
Cambridge City Council,J Mattison T/A Mattison Contract Beds,10059800,29/03/2019,027727,9901,Housing Revenue Account Balance Sheet,30003,Hra Earmarked Reserves Balance,"2,160.00"
Cambridge City Council,Jade Security Services Ltd,10060400,31/03/2019,028111,5024,E_invoicing Suspense Accounts,69100,Expenditure In Holding Account Awaiting Allocation,"2,301.00"
Cambridge City Council,James Coles & Sons (Nurseries)Ltd,10060700,26/02/2019,027958,6109,City Homes Estate Caretaking,60503,Grounds Maintenance,"2,369.65"
Cambridge City Council,James Coles & Sons (Nurseries)Ltd,10060700,26/02/2019,027661,6109,City Homes Estate Caretaking,60506,Gardening Supplies,"2,365.65"
Cambridge City Council,James Linford T/A Linford Joinery,10189500,19/04/2019,028789,6207,Repairs Day to Day,60233,Housing Repairs - Work Given To External Contractors,600.00
Cambridge City Council,Jasmina Choukair,10344400,25/04/2019,029259,5021,Salaries & Wages Control A/C,69100,Expenditure In Holding Account Awaiting Allocation,"1,227.00"
Cambridge City Council,Jokensons Ltd,10062500,11/04/2019,028913,1858,Public Realm Enforcement,61800,Contract Charges,661.60
Cambridge City Council,Junction CDC Ltd,10062700,01/04/2019,027267,1057,Community Development Voluntary Support,64600,Grants And Contributions,"13,750.00"
Cambridge City Council,Keep Playing t/a Level Water,10333400,01/04/2019,027285,1057,Community Development Voluntary Support,64600,Grants And Contributions,"2,400.00"
Cambridge City Council,Kestrel Fencing,10119900,28/03/2019,027600,6109,City Homes Estate Caretaking,60233,Housing Repairs - Work Given To External Contractors,"1,415.20"
Cambridge City Council,Kestrel Fencing,10119900,28/03/2019,027607,6108,Estate Management (North),60503,Grounds Maintenance,"1,720.32"
Cambridge City Council,Khidmat Sisters,10165500,01/04/2019,027316,1057,Community Development Voluntary Support,64600,Grants And Contributions,550.00
Cambridge City Council,Kompan Ltd,10120100,26/04/2019,029399,1866,Open Space Asset Maintenance,61702,"Maintenance - Equipment, Furniture And Materials","5,400.00"
Cambridge City Council,Kompan Ltd,10120100,26/04/2019,029399,1866,Open Space Asset Maintenance,61702,"Maintenance - Equipment, Furniture And Materials",935.00
Cambridge City Council,LA Directories Ltd,10164900,01/04/2019,027599,1802,Housing Benefits,64800,Membership And Subscriptions,"5,391.00"
Cambridge City Council,LAVAT Consulting Limited,10065800,04/04/2019,027783,8006,Accountancy and Support Services,62400,Consultancy Fees,"2,200.00"
Cambridge City Council,LGSS - Cambridgeshire Pension Fund,10022801,23/04/2019,029059,9900,General Fund Balance Sheet,10013,CCC General Account Bank Account,"484,699.71"
Cambridge City Council,Lodge Roofing Ltd,10120500,29/03/2019,027631,6207,Repairs Day to Day,60233,Housing Repairs - Work Given To External Contractors,"2,210.00"
Cambridge City Council,Lynch Healthcare Ltd,10199600,20/03/2019,028020,200001,Mandatory Disabled Facilities Grants (Tenants),70015,CAPEX - Grants Paid,"2,549.00"
Cambridge City Council,Lynch Healthcare Ltd,10199600,04/04/2019,028161,300000,Disabled Adaptions,70004,CAPEX - Building Contractor/Works - OHT Installations (HRA),"1,974.74"
Cambridge City Council,M & J Group (Construction & Roofing) Ltd,10336400,03/04/2019,027685,9900,General Fund Balance Sheet,20119,Other Creditors - Other Entities And Individuals,840.00
Cambridge City Council,M Cobelli T/A MC Flooring,10121200,05/04/2019,027876,8018,Admin Building Allocation,60201,Cyclical/Planned Maintenance - Building,"1,545.00"
Cambridge City Council,M Watson Construction Ltd,10122200,03/04/2019,027507,200001,Mandatory Disabled Facilities Grants (Tenants),70015,CAPEX - Grants Paid,"3,621.30"
Cambridge City Council,Mace Ltd,10290900,29/03/2019,028514,1252,Cambridge Junction,62400,Consultancy Fees,"8,000.00"
Cambridge City Council,Macildowie Associates Ltd,10299000,21/04/2019,029130,8006,Accountancy and Support Services,60011,Agency Staff,853.66
Cambridge City Council,Macildowie Associates Ltd,10299000,21/04/2019,029130,6000,Housing Revenue Account - Net Cost of Service,60011,Agency Staff,853.66
Cambridge City Council,Macildowie Associates Ltd,10299000,07/04/2019,028423,8006,Accountancy and Support Services,60011,Agency Staff,"1,067.07"
Cambridge City Council,Macildowie Associates Ltd,10299000,07/04/2019,028423,6000,Housing Revenue Account - Net Cost of Service,60011,Agency Staff,"1,067.08"
Cambridge City Council,Macildowie Associates Ltd,10299000,07/04/2019,028423,8006,Accountancy and Support Services,60011,Agency Staff,"1,067.07"
Cambridge City Council,Macildowie Associates Ltd,10299000,07/04/2019,028423,6000,Housing Revenue Account - Net Cost of Service,60011,Agency Staff,"1,067.08"
Cambridge City Council,Macildowie Associates Ltd,10299000,14/04/2019,028939,8006,Accountancy and Support Services,60011,Agency Staff,853.66
Cambridge City Council,Macildowie Associates Ltd,10299000,14/04/2019,028939,6000,Housing Revenue Account - Net Cost of Service,60011,Agency Staff,853.66
Cambridge City Council,Mallina Group,10192600,29/03/2019,027699,1101,Leisure Contract Management Fees,62005,"Advertising, Publicity And Marketing",570.00
Cambridge City Council,Marfleet and Blyth Ltd,10194400,29/03/2019,027213,300052,New Build - 2015/16 Garage Sites,70002,CAPEX - Building Contractor/Works,"190,059.53"
Cambridge City Council,Marshall Motor Group Ltd,10069500,04/04/2019,028063,1031,Fleet Management - Operational,61703,"Purchase - Equipment, Furniture And Materials",550.05
Cambridge City Council,Marshall Motor Group Ltd,10069500,27/02/2019,028063,1031,Fleet Management - Operational,61703,"Purchase - Equipment, Furniture And Materials",521.95
Cambridge City Council,Marshall Motor Group Ltd,10069500,13/02/2019,028063,1031,Fleet Management - Operational,61703,"Purchase - Equipment, Furniture And Materials",542.53
Cambridge City Council,Meadows Children & Family Wing,10070500,01/04/2019,027291,1057,Community Development Voluntary Support,64600,Grants And Contributions,"4,000.00"
Cambridge City Council,Meadows Children & Family Wing,10070500,24/04/2019,029101,1057,Community Development Voluntary Support,64600,Grants And Contributions,"15,125.00"
Cambridge City Council,Metropolitan Housing Trust Ltd,10336300,01/04/2019,027690,1502,Homelessness Costs,63900,Miscellaneous Expenses,"1,000.00"
Cambridge City Council,"Ministry of Housing, Communities & Local Government",10134000,10/04/2019,028384,9901,Housing Revenue Account Balance Sheet,30004,Capital Receipts Reserve,"283,489.48"
Cambridge City Council,Mishcon de Reya LLP,10343200,18/01/2019,029375,8006,Accountancy and Support Services,62400,Consultancy Fees,"1,000.00"
Cambridge City Council,Miss Jennifer Moate,10334500,28/03/2019,027686,6006,Anti-Social Behaviour,62400,Consultancy Fees,"1,053.60"
Cambridge City Council,MLM Consulting Engineers Ltd,10072500,29/03/2019,027340,300035,Ditchburn Place,70010,CAPEX - Other Professional Fees,655.00
Cambridge City Council,Morton Training Ltd,10296000,11/04/2019,028830,1856,Streets & Open Spaces (Operations) - Indirect Costs,62005,"Advertising, Publicity And Marketing","3,345.00"
Cambridge City Council,Mowell & Co Ltd,10121800,08/04/2019,028076,1102,Leisure Contract Client Costs,60201,Cyclical/Planned Maintenance - Building,568.00
Cambridge City Council,Mowell & Co Ltd,10121800,01/04/2019,027364,1100,Sport & Recreation Administration,60201,Cyclical/Planned Maintenance - Building,"1,100.00"
Cambridge City Council,Mowell & Co Ltd,10121800,08/04/2019,028069,1100,Sport & Recreation Administration,60201,Cyclical/Planned Maintenance - Building,775.00
Cambridge City Council,Mowell & Co Ltd,10121800,04/04/2019,027807,1102,Leisure Contract Client Costs,62005,"Advertising, Publicity And Marketing",545.00
Cambridge City Council,Mowell & Co Ltd,10121800,04/04/2019,027778,1102,Leisure Contract Client Costs,60201,Cyclical/Planned Maintenance - Building,635.00
Cambridge City Council,Ms Victoria Osler - Five Paper,10294500,28/03/2019,028186,1502,Homelessness Costs,63200,Legal Fees,"1,040.00"
Cambridge City Council,Munro Building Services Limited,10122100,28/03/2019,029115,1870,Public Toilets,60201,Cyclical/Planned Maintenance - Building,"1,387.80"
Cambridge City Council,Nemco Utilities Ltd,10075300,03/04/2019,027911,1260,Corn Exchange and Guildhalls,60207,Health And Safety Supplies And Services,"1,230.48"
Cambridge City Council,Neopost Ltd,10137601,06/03/2019,027553,6004,Leasehold Property Management,64100,Postage And Courier Services,"1,000.00"
Cambridge City Council,Neopost Ltd,10137601,06/03/2019,027553,6012,City Homes Expenditure,64100,Postage And Courier Services,"1,000.00"
Cambridge City Council,Newlyn PLC,10075600,06/04/2019,028745,1801,Local Taxation,63900,Miscellaneous Expenses,716.00
Cambridge City Council,Newnham Bowls Club,10075700,24/04/2019,028954,1102,Leisure Contract Client Costs,64600,Grants And Contributions,"5,331.42"
Cambridge City Council,Norse Commercial Services Ltd t/a N-Able,10130000,31/03/2019,027664,300000,Disabled Adaptions,70007,CAPEX - Building Contractor/Works - Major Adaptations (HRA),"4,197.00"
Cambridge City Council,Norse Commercial Services Ltd t/a N-Able,10130000,31/03/2019,027641,300000,Disabled Adaptions,70007,CAPEX - Building Contractor/Works - Major Adaptations (HRA),"4,688.25"
Cambridge City Council,Northgate Public Services (UK) Ltd,10076700,20/04/2019,029008,1504,Housing Advice Service,64073,ICT Maintenance and Support,526.08
Cambridge City Council,Northgate Public Services (UK) Ltd,10076700,03/04/2019,029427,1801,Local Taxation,64071,Ict Software,"1,725.00"
Cambridge City Council,Northgate Public Services (UK) Ltd,10076700,25/04/2019,029292,1802,Housing Benefits,64073,ICT Maintenance and Support,"4,500.00"
Cambridge City Council,Northgate Public Services (UK) Ltd,10076700,04/04/2019,027939,1802,Housing Benefits,64073,ICT Maintenance and Support,"2,500.00"
Cambridge City Council,Northgate Public Services (UK) Ltd,10076700,04/04/2019,027939,1802,Housing Benefits,62400,Consultancy Fees,"1,700.00"
Cambridge City Council,Northgate Vehicle Hire Ltd,10076800,29/03/2019,027943,1052,Children & Young People's Service,60909,Vehicle Hire,657.82
Cambridge City Council,Novahub,10326100,01/04/2019,028480,1260,Corn Exchange and Guildhalls,60301,Telecommunications,"6,500.00"
Cambridge City Council,Nuaire Ltd,10122400,02/04/2019,028250,9900,General Fund Balance Sheet,11600,Consumable Stores,"1,014.00"
Cambridge City Council,Oblique Arts,10159100,16/04/2019,028515,1057,Community Development Voluntary Support,64600,Grants And Contributions,"2,625.00"
Cambridge City Council,Office Update Ltd,10077800,04/04/2019,028671,8004,Facilities Management,61703,"Purchase - Equipment, Furniture And Materials","1,670.00"
Cambridge City Council,Outspoken Delivery LLP,10078900,31/03/2019,027341,8011,Corporate Business Support,64100,Postage And Courier Services,"1,922.05"
Cambridge City Council,Panther Taxis Ltd,10079600,31/01/2019,028182,1712,Taxicard Service,63900,Miscellaneous Expenses,"3,188.30"
Cambridge City Council,Parsons Containers Ltd,10299500,26/03/2019,027983,1419,Environmental Health Operational Support,61703,"Purchase - Equipment, Furniture And Materials","2,030.00"
Cambridge City Council,Penna PLC,10080400,09/04/2019,028845,6201,Building Services - Indirect,62005,"Advertising, Publicity And Marketing",930.33
Cambridge City Council,Penna PLC,10080400,09/04/2019,029282,1419,Environmental Health Operational Support,60116,Staff Recruitment Costs,"1,480.00"
Cambridge City Council,Penna PLC,10080400,29/03/2019,027593,1301,Central Post Scanning Facility,62005,"Advertising, Publicity And Marketing",555.73
Cambridge City Council,Penna PLC,10080400,16/04/2019,028635,1661,Parking Administration,62005,"Advertising, Publicity And Marketing","1,486.33"
Cambridge City Council,Pennon Water Services Ltd T/A Cambridge Water Business,10080500,15/04/2019,028586,5024,E_invoicing Suspense Accounts,69100,Expenditure In Holding Account Awaiting Allocation,"7,745.48"
Cambridge City Council,People Asset Management Ltd,10145100,31/03/2019,027694,8001,Human Resources Operations (Staff-General),60111,Occupational Health,550.00
Cambridge City Council,People Asset Management Ltd,10145100,31/03/2019,027694,8001,Human Resources Operations (Staff-General),60111,Occupational Health,745.00
Cambridge City Council,Pictorial Meadows Ltd,10130400,03/04/2019,028145,1862,Open Space Asset Management,60506,Gardening Supplies,"2,250.00"
Cambridge City Council,Playground Developments Ltd T/A Dt Leisure,10122800,22/03/2019,027220,1866,Open Space Asset Maintenance,60503,Grounds Maintenance,"2,000.00"
Cambridge City Council,Playground Developments Ltd T/A Dt Leisure,10122800,26/03/2019,027247,1868,Play Maintenance,60503,Grounds Maintenance,"1,675.00"
Cambridge City Council,Playground Developments Ltd T/A Dt Leisure,10122800,26/03/2019,027253,1866,Open Space Asset Maintenance,61702,"Maintenance - Equipment, Furniture And Materials","3,000.00"
Cambridge City Council,Playground Developments Ltd T/A Dt Leisure,10122800,18/03/2019,027256,1866,Open Space Asset Maintenance,61702,"Maintenance - Equipment, Furniture And Materials","3,000.00"
Cambridge City Council,Pocock & Shaw Ltd,10138301,01/04/2019,027909,6004,Leasehold Property Management,62400,Consultancy Fees,525.00
Cambridge City Council,Power Control Panels Ltd,10123000,23/04/2019,028945,6207,Repairs Day to Day,60233,Housing Repairs - Work Given To External Contractors,"1,384.00"
Cambridge City Council,Premier Moves Ltd,10083400,29/03/2019,027371,6007,Departmental Overheads-Client,61703,"Purchase - Equipment, Furniture And Materials",695.00
Cambridge City Council,Priava,,29/03/2019,028184,1263,Cambridge Live - Central,64072,Ict Licences,"7,460.00"
Cambridge City Council,Print.UK.Com,10083800,31/03/2019,028552,1353,Elections,62001,Printing,"2,242.15"
Cambridge City Council,Print.UK.Com,10083800,31/03/2019,028488,1353,Elections,62001,Printing,"1,248.00"
Cambridge City Council,Prompt Glazing Ltd,10283900,29/03/2019,027210,300012,External Doors,70003,CAPEX - Building Contractor/Works - Voids & Emergencies,645.00
Cambridge City Council,Prompt Glazing Ltd,10283900,29/03/2019,027191,300012,External Doors,70003,CAPEX - Building Contractor/Works - Voids & Emergencies,645.00
Cambridge City Council,Propotec Ltd,10123300,05/04/2019,028189,6208,Voids,60233,Housing Repairs - Work Given To External Contractors,500.00
Cambridge City Council,Pure Resourcing Solutions Ltd,10322600,07/04/2019,028259,1263,Cambridge Live - Central,60011,Agency Staff,651.62
Cambridge City Council,Quartix Ltd,10206900,01/04/2019,027659,5001,City Services Holding Account,69100,Expenditure In Holding Account Awaiting Allocation,"3,961.50"
Cambridge City Council,R J Warren Ltd,10123500,23/04/2019,028935,1871,Allotments,60503,Grounds Maintenance,"2,000.00"
Cambridge City Council,R J Warren Ltd,10123500,29/03/2019,027272,1871,Allotments,60503,Grounds Maintenance,"1,452.00"
Cambridge City Council,Realife Trust,10086900,20/03/2019,027761,1766,Orwell House Offices-Internal,62004,General Office Expenses,"1,319.62"
Cambridge City Council,Reed Business Information Ltd,10087300,03/04/2019,027756,8000,Human Resources - Business Support,64073,ICT Maintenance and Support,"6,394.50"
Cambridge City Council,Regional Publications Ltd,10087400,28/03/2019,029074,1519,Shared Home Improvement Agency,62005,"Advertising, Publicity And Marketing",500.00
Cambridge City Council,Relx (UK) Ltd T/A Lexisnexis UK,10087600,02/04/2019,027723,8014,3C Legal Practice,62003,"Books, Publications And Resources","1,500.00"
Cambridge City Council,Revive Floor Sanding Company Ltd,10338400,04/04/2019,028258,1250,Cultural Facilities Administration,60201,Cyclical/Planned Maintenance - Building,"4,300.00"
Cambridge City Council,Rigby Taylor Ltd,10089300,04/04/2019,028256,1856,Streets & Open Spaces (Operations) - Indirect Costs,61703,"Purchase - Equipment, Furniture And Materials","1,480.00"
Cambridge City Council,Robert Half Ltd,10299100,04/04/2019,027978,8006,Accountancy and Support Services,60011,Agency Staff,"1,806.39"
Cambridge City Council,Robert Half Ltd,10299100,25/04/2019,029245,8006,Accountancy and Support Services,60011,Agency Staff,"1,562.29"
Cambridge City Council,Robert Half Ltd,10299100,11/04/2019,028335,8006,Accountancy and Support Services,60011,Agency Staff,"1,806.39"
Cambridge City Council,Romsey Mill Trust,10090200,12/04/2019,028421,1057,Community Development Voluntary Support,64600,Grants And Contributions,"4,857.00"
Cambridge City Council,Romsey Mill Trust,10090200,05/04/2019,027816,1057,Community Development Voluntary Support,64600,Grants And Contributions,"10,000.00"
Cambridge City Council,Romsey Mill Trust,10090200,03/04/2019,027691,1057,Community Development Voluntary Support,64600,Grants And Contributions,"4,000.00"
Cambridge City Council,Romsey Mill Trust,10090200,23/04/2019,029050,1057,Community Development Voluntary Support,64600,Grants And Contributions,"2,750.00"
Cambridge City Council,Rowan Humberstone,10090400,23/04/2019,029069,1057,Community Development Voluntary Support,64600,Grants And Contributions,"1,000.00"
Cambridge City Council,Royal Mail Group Ltd,10128400,09/04/2019,028146,8023,Business Support - Centralised Overheads,64100,Postage And Courier Services,"1,756.57"
Cambridge City Council,Royal Mail Group Ltd,10128400,22/04/2019,029189,1353,Elections,64100,Postage And Courier Services,"5,620.80"
Cambridge City Council,Royal Mail Group Ltd,10128400,02/04/2019,027810,8023,Business Support - Centralised Overheads,64100,Postage And Courier Services,"1,356.55"
Cambridge City Council,S P Landscapes & Tree Contractors Ltd,10124100,16/04/2019,028585,1876,Arboriculture,64040,Tree Works,880.00
Cambridge City Council,S P Landscapes & Tree Contractors Ltd,10124100,29/03/2019,028167,1876,Arboriculture,64040,Tree Works,"3,900.00"
Cambridge City Council,S P Landscapes & Tree Contractors Ltd,10124100,29/03/2019,028167,1876,Arboriculture,64040,Tree Works,556.00
Cambridge City Council,S P Landscapes & Tree Contractors Ltd,10124100,26/03/2019,027606,6108,Estate Management (North),64040,Tree Works,840.00
Cambridge City Council,S P Landscapes & Tree Contractors Ltd,10124100,12/04/2019,028502,1876,Arboriculture,64040,Tree Works,"1,250.00"
Cambridge City Council,S P Landscapes & Tree Contractors Ltd,10124100,29/03/2019,027812,1876,Arboriculture,64040,Tree Works,"5,455.00"
Cambridge City Council,Saunders Boston Ltd,10091900,31/03/2019,028091,300075,New Build - Kendal Way,70008,CAPEX - Architects Fees,995.00
Cambridge City Council,Scarab Sweepers Ltd,10092300,26/03/2019,027719,1856,Streets & Open Spaces (Operations) - Indirect Costs,61703,"Purchase - Equipment, Furniture And Materials","2,084.62"
Cambridge City Council,Shaw Trust,10279200,02/04/2019,028710,1519,Shared Home Improvement Agency,64300,Conference Expenses,"4,800.00"
Cambridge City Council,Simpsons (East Anglia) Ltd Ta Drain Doctor Plumbing,10094700,05/04/2019,027971,6207,Repairs Day to Day,60233,Housing Repairs - Work Given To External Contractors,"1,086.04"
Cambridge City Council,Simpsons (East Anglia) Ltd Ta Drain Doctor Plumbing,10094700,03/04/2019,027974,6207,Repairs Day to Day,60233,Housing Repairs - Work Given To External Contractors,560.00
Cambridge City Council,Simpsons (East Anglia) Ltd Ta Drain Doctor Plumbing,10094700,27/03/2019,027388,6207,Repairs Day to Day,60233,Housing Repairs - Work Given To External Contractors,"1,209.90"
Cambridge City Council,SJW Building Contracts Ltd,10137300,04/04/2019,027930,300006,Insulation / Energy Efficiency,70002,CAPEX - Building Contractor/Works,"1,152.00"
Cambridge City Council,SMI Group Ltd,10095200,18/01/2019,021881,1856,Streets & Open Spaces (Operations) - Indirect Costs,62000,"Clothes, Uniform And Laundry",883.50
Cambridge City Council,Smith & Ouzman Ltd,10095300,16/04/2019,028707,1802,Housing Benefits,62001,Printing,819.60
Cambridge City Council,Smith & Ouzman Ltd,10095300,29/03/2019,027525,1801,Local Taxation,62001,Printing,"1,441.70"
Cambridge City Council,Smith & Ouzman Ltd,10095300,29/03/2019,027711,1801,Local Taxation,62001,Printing,"3,108.59"
Cambridge City Council,Smith & Ouzman Ltd,10095300,29/03/2019,027389,2005,Finance General,63900,Miscellaneous Expenses,987.55
Cambridge City Council,Smith & Ouzman Ltd,10095300,29/03/2019,027552,1801,Local Taxation,62001,Printing,"1,546.70"
Cambridge City Council,Smith & Ouzman Ltd,10095300,29/03/2019,028968,1801,Local Taxation,62001,Printing,"6,011.50"
Cambridge City Council,Smith & Ouzman Ltd,10095300,29/03/2019,027526,1801,Local Taxation,62001,Printing,"1,945.18"
Cambridge City Council,Snap On UK Holdings Ltd,10095500,03/04/2019,029240,1031,Fleet Management - Operational,61703,"Purchase - Equipment, Furniture And Materials",711.11
Cambridge City Council,South Cambridgeshire District Council,10096101,28/03/2019,028221,1706,Planning Policy,53001,Fees & Charges Income (S),"8,877.79"
Cambridge City Council,South Cambridgeshire District Council,10096101,02/04/2019,027671,1510,Housing Strategy,64060,Shared Service Contribution,"4,234.00"
Cambridge City Council,South Cambridgeshire District Council,10096101,28/03/2019,028222,1708,Urban Design & Conservation,53001,Fees & Charges Income (S),"1,335.00"
Cambridge City Council,South Cambridgeshire District Council,10096101,11/03/2019,029320,1063,The Meadows Community Centre,60403,Business Rates Payable,"12,275.00"
Cambridge City Council,South Cambridgeshire District Council,10096101,28/03/2019,028217,1625,Land Charges and Searches,53001,Fees & Charges Income (S),"15,662.33"
Cambridge City Council,South Cambridgeshire District Council,10096101,28/03/2019,028219,1706,Planning Policy,53001,Fees & Charges Income (S),"5,245.22"
Cambridge City Council,South Cambridgeshire District Council,10096101,08/04/2019,028190,1519,Shared Home Improvement Agency,60400,Rents Payable,"5,412.92"
Cambridge City Council,South Cambridgeshire District Council,10096101,25/03/2019,027823,1454,Cambridge Northern Fringe East (CNFE),62400,Consultancy Fees,"22,543.39"
Cambridge City Council,South Cambridgeshire District Council,10096101,28/03/2019,028223,1702,City Development,53001,Fees & Charges Income (S),"127,714.50"
Cambridge City Council,South Cambridgeshire District Council,10096101,28/03/2019,028223,5046,Planning Portal On-Line Payments,53001,Fees & Charges Income (S),625.00
Cambridge City Council,Southern Electric - Energy,10096200,25/02/2019,027878,6205,Citywide Schemes,60218,Housing Repairs - Electrical Supply / Air Cooling / Lighting,536.50
Cambridge City Council,St John Ambulance,10097400,04/04/2019,028008,1031,Fleet Management - Operational,60115,Staff Development And Training,600.00
Cambridge City Council,St John The Evangelist,10097500,13/04/2019,029212,100262,Grant for St John's Church improvement (S106),70015,CAPEX - Grants Paid,"36,882.00"
Cambridge City Council,Steam E Holdings Ltd,10334000,08/04/2019,028375,1858,Public Realm Enforcement,61702,"Maintenance - Equipment, Furniture And Materials","3,200.00"
Cambridge City Council,Stepney Brothers Limited,10098600,08/04/2019,028904,1031,Fleet Management - Operational,61703,"Purchase - Equipment, Furniture And Materials",863.35
Cambridge City Council,Stripe Consulting Limited,10099000,09/04/2019,028719,100237,Crematorium - cafe facilities,70010,CAPEX - Other Professional Fees,"2,194.50"
Cambridge City Council,Stripe Consulting Limited,10099000,01/04/2019,027318,100032,Structural Holding Repairs & Lift Refurbishment - Queen Anne,70010,CAPEX - Other Professional Fees,"2,400.00"
Cambridge City Council,Student Community Action,10099200,02/04/2019,027648,1057,Community Development Voluntary Support,64600,Grants And Contributions,"6,000.00"
Cambridge City Council,Studio 24 Ltd,10249400,01/03/2019,028174,1263,Cambridge Live - Central,64072,Ict Licences,"1,029.70"
Cambridge City Council,Sunseeker Windows Ltd,10099900,12/04/2019,028771,300012,External Doors,70003,CAPEX - Building Contractor/Works - Voids & Emergencies,760.00
Cambridge City Council,Sunseeker Windows Ltd,10099900,12/04/2019,028768,300012,External Doors,70003,CAPEX - Building Contractor/Works - Voids & Emergencies,540.00
Cambridge City Council,Sunseeker Windows Ltd,10099900,12/04/2019,028770,300012,External Doors,70003,CAPEX - Building Contractor/Works - Voids & Emergencies,570.00
Cambridge City Council,Sunseeker Windows Ltd,10099900,12/04/2019,028769,300012,External Doors,70003,CAPEX - Building Contractor/Works - Voids & Emergencies,540.00
Cambridge City Council,Swarco UK Ltd,10169900,27/09/2018,029385,100112,Electric vehicle charging points,70002,CAPEX - Building Contractor/Works,"19,500.00"
Cambridge City Council,Swatch Group (UK) Ltd T/A Swiss Timing,10100500,10/04/2019,028505,1102,Leisure Contract Client Costs,61702,"Maintenance - Equipment, Furniture And Materials","1,996.00"
Cambridge City Council,Team Building Systems Ltd t/a Cabins GB,10301500,27/03/2019,028194,1855,Street Cleaning - Direct,63900,Miscellaneous Expenses,"7,750.00"
Cambridge City Council,Terberg Matec UK Ltd,10101500,09/04/2019,028592,1031,Fleet Management - Operational,61703,"Purchase - Equipment, Furniture And Materials",503.01
Cambridge City Council,The BSS Group PLC - Pts Plumbing Trade Supplies,10102000,05/04/2019,028897,9900,General Fund Balance Sheet,11600,Consumable Stores,"1,200.62"
Cambridge City Council,The Concrete & Corrosion Consultancy Practice Ltd,10200700,28/03/2019,028426,300038,Wall Structure,70009,CAPEX - Engineers Fees,"28,800.00"
Cambridge City Council,The Kings Hedges Family Support Project,10260200,02/04/2019,027708,1054,Neighbourhood Community Plan,64600,Grants And Contributions,"4,000.00"
Cambridge City Council,The Kings Hedges Family Support Project,10260200,01/04/2019,027300,1057,Community Development Voluntary Support,64600,Grants And Contributions,"5,000.00"
Cambridge City Council,The Knowledge Academy Ltd,10197200,21/03/2019,027571,1207,Programme Office,64300,Conference Expenses,"6,000.00"
Cambridge City Council,The Local Government and Social Care Ombudsman,10221700,04/02/2019,029009,6203,Technical Services,64300,Conference Expenses,"1,200.00"
Cambridge City Council,The Netherhall School & Sixth From Centre,10104400,25/04/2019,029246,100063,Netherhall School: supplementary grant for gym and,70002,CAPEX - Building Contractor/Works,"23,446.60"
Cambridge City Council,The Pink Festival Group,10104500,17/04/2019,028756,100185,[Completed] Public art grant for Pink Festival Group,70015,CAPEX - Grants Paid,"15,000.00"
Cambridge City Council,The Richmond Fellowship Ltd,10104900,05/04/2019,027836,1057,Community Development Voluntary Support,64600,Grants And Contributions,"9,000.00"
Cambridge City Council,The Riverside Group Ltd - ECHG,10105001,08/04/2019,028064,1502,Homelessness Costs,64401,B&B Accommodation,"2,170.80"
Cambridge City Council,The Riverside Group Ltd - ECHG,10105001,02/04/2019,027649,1509,Grants to Housing Agencies,64600,Grants And Contributions,"5,250.00"
Cambridge City Council,The Riverside Group Ltd - ECHG,10105001,15/04/2019,028463,1502,Homelessness Costs,64401,B&B Accommodation,"2,617.44"
Cambridge City Council,The Royal Albert Homes,10105100,17/04/2019,028680,1057,Community Development Voluntary Support,64600,Grants And Contributions,500.00
Cambridge City Council,The Urban Forest Consultancy Ltd,10105700,17/04/2019,028702,1876,Arboriculture,62400,Consultancy Fees,"4,000.00"
Cambridge City Council,The Wildlife Trust BCN,10105800,04/04/2019,028318,1878,Local Nature Reserves,60503,Grounds Maintenance,"5,250.00"
Cambridge City Council,Thistle Insurance Services Ltd,10105900,09/04/2019,028155,9901,Housing Revenue Account Balance Sheet,20119,Other Creditors - Other Entities And Individuals,"1,761.65"
Cambridge City Council,Thomson Reuters Professional UK Ltd T/A Sweet & Maxwell,10106000,03/04/2019,027765,8014,3C Legal Practice,62003,"Books, Publications And Resources","25,023.00"
Cambridge City Council,Thomson Reuters Professional UK Ltd T/A Sweet & Maxwell,10106000,01/04/2019,027905,8014,3C Legal Practice,62003,"Books, Publications And Resources","8,221.24"
Cambridge City Council,Thurlow Nunn Standen Ltd,10106100,29/03/2019,027197,1000,City Cambridge Cemeteries,61702,"Maintenance - Equipment, Furniture And Materials",528.82
Cambridge City Council,Thurlow Nunn Standen Ltd,10106100,29/03/2019,029004,1856,Streets & Open Spaces (Operations) - Indirect Costs,61703,"Purchase - Equipment, Furniture And Materials",900.00
Cambridge City Council,Total Gas & Power Ltd,10134800,17/04/2019,028591,5024,E_invoicing Suspense Accounts,69100,Expenditure In Holding Account Awaiting Allocation,"77,428.94"
Cambridge City Council,Trumpington Residents Association,10108500,23/04/2019,028888,1057,Community Development Voluntary Support,64600,Grants And Contributions,"1,500.00"
Cambridge City Council,Tunstall Response Ltd,10109200,02/04/2019,027677,6103,Emergency Alarms,63900,Miscellaneous Expenses,"5,387.98"
Cambridge City Council,U Plastics Ltd,10109600,16/04/2019,029218,9900,General Fund Balance Sheet,11600,Consumable Stores,519.00
Cambridge City Council,UK Fuels Limited,10192900,31/03/2019,028128,5001,City Services Holding Account,69100,Expenditure In Holding Account Awaiting Allocation,"5,779.52"
Cambridge City Council,UK Fuels Limited,10192900,07/04/2019,028422,5001,City Services Holding Account,69100,Expenditure In Holding Account Awaiting Allocation,"4,337.72"
Cambridge City Council,UK Fuels Limited,10192900,14/04/2019,028752,5001,City Services Holding Account,69100,Expenditure In Holding Account Awaiting Allocation,"4,750.82"
Cambridge City Council,Unison,10173200,23/04/2019,028868,9900,General Fund Balance Sheet,10013,CCC General Account Bank Account,"2,595.75"
Cambridge City Council,University of Cambridge,10110200,05/04/2019,028113,1057,Community Development Voluntary Support,64600,Grants And Contributions,"6,000.00"
Cambridge City Council,University of Cambridge,10110200,01/04/2019,027384,1057,Community Development Voluntary Support,64600,Grants And Contributions,"7,500.00"
Cambridge City Council,Volvo Group UK Ltd,10111400,25/07/2018,027403,1031,Fleet Management - Operational,60904,Vehicle Repairs And Maintenance,"1,801.24"
Cambridge City Council,Volvo Group UK Ltd,10111400,04/04/2019,027777,1032,Garage- External Work,61703,"Purchase - Equipment, Furniture And Materials","1,801.24"
Cambridge City Council,Walls & Floors (Kettering) Ltd,10112100,23/04/2019,029218,9900,General Fund Balance Sheet,11600,Consumable Stores,555.90
Cambridge City Council,Weightmans LLP,10112700,30/01/2019,028836,8009,Insurance Fund,67302,Insurance Claim,"2,142.00"
Cambridge City Council,Wesley Media,10112900,28/03/2019,026977,1001,Cambridge Crematorium,63900,Miscellaneous Expenses,"11,794.43"
Cambridge City Council,WFL UK Ltd,10113200,27/03/2019,028832,1031,Fleet Management - Operational,60306,Heating Oil,"1,299.60"
Cambridge City Council,Willingham Medical Practice,10127300,08/04/2019,028058,1001,Cambridge Crematorium,63900,Miscellaneous Expenses,"2,625.00"
Cambridge City Council,Willingham Medical Practice,10127300,08/04/2019,028056,1001,Cambridge Crematorium,63900,Miscellaneous Expenses,"2,670.00"
Cambridge City Council,Wine Gums Comedy Nights,10327900,10/04/2019,028285,1262,Folk Festival,52210,Delivery fees,625.63
Cambridge City Council,Wintercomfort,10113600,04/04/2019,028126,1882,Walking & Cycling Strategy,62900,Events,"1,413.96"
Cambridge City Council,Wiser Recycling Ltd,10215500,11/04/2019,028549,6200,Building Maintenance Response - Direct,64050,Waste Disposal Costs,655.05
Cambridge City Council,Wood Green Animal Shelters,10114100,31/03/2019,027762,1858,Public Realm Enforcement,61800,Contract Charges,832.49
Cambridge City Council,Wood Green Animal Shelters,10114100,28/02/2019,027362,1858,Public Realm Enforcement,61800,Contract Charges,"1,832.49"
Cambridge City Council,XL Displays Ltd,10151500,12/03/2019,028103,1860,Bill Posting & Distribution,61703,"Purchase - Equipment, Furniture And Materials",950.80
Cambridge City Council,X-Venture Ltd,10334100,29/03/2019,027676,1205,Quality/Health & Safety Management - Indirect,64300,Conference Expenses,"1,700.00"
Cambridge City Council,YMCA Cambridgeshire and Peterborough,,31/03/2019,028123,1509,Grants to Housing Agencies,62900,Events,"2,985.86"
